Cogmind - Beta 13 @@@ ROGUE MODE // 2024.05.01 @ 18:28:14 // Winter2019/RPGLIKE Player: Luminiferous Result: Destroyed self with Rocket Launcher Performance ------------- Evolutions (1) 500 Regions Visited (3) 600 Robots Destroyed (27) 135 Value Destroyed (791) 791 Prototype IDs (1) 20 Alien Tech Used (0) 0 Bonus (33) 33 TOTAL SCORE: 2079 Bonus ------- Follower Combat Kills 33 Cogmind --------- Core Integrity 0/600 Matter 245/300 Energy 160/160 System Corruption 0% Temperature Warm (102) Movement Hovering (116) Ox1 Location -9/Materials Parts ------- > --- POWER (1) -------- Light Nuclear Core > --- PROPULSION (3) --- Hover Unit Hover Unit > --- UTILITY (4) ------ Structural Scanner Experimental Sensor Array Signal Interpreter Improved Light Armor Plating > --- WEAPON (2) ------- Rocket Launcher Mining Claw > --- INVENTORY (3) ---- Protomatter-43 Light Deuterium Engine Aluminum Leg Peak State ------------ > --- POWER ------------ Light Nuclear Core > --- PROPULSION ------- Hover Unit Hover Unit > --- UTILITY ---------- Structural Scanner Experimental Sensor Array Signal Interpreter Improved Light Armor Plating > --- WEAPON ----------- Rocket Launcher Mining Claw > --- INVENTORY -------- Protomatter Light Deuterium Engine [Rating: 22] Favorites ----------- Power Light Nuclear Core Engine Ion Engine Power Core Light Nuclear Core Propulsion Hover Unit Wheel Wheel Hover Unit Hover Unit Utility Structural Scanner Device Structural Scanner Processor Signal Interpreter Protection Improved Light Armor Plating Weapon Mining Claw Energy Gun EM Pulse Gun Ballistic Gun Assault Rifle Launcher Rocket Launcher Impact Weapon Hammer Slashing Weapon Mining Claw Build | -11 -10 -10 -9 ------- Run | Yrd Mat Min Mat Slots Evolved 6 | 3 1 . 2 Power . | . . . . Propulsion 2 | 1 . . 1 Utility 3 | 1 1 . 1 Weapon 1 | 1 . . . Parts Attached 30 | 3 22 3 2 Power 6 | 1 3 2 . Engine 4 | 1 2 1 . Core 2 | . 1 1 . Reactor . | . . . . Propulsion 6 | . 6 . . Treads . | . . . . Leg . | . . . . Wheel 3 | . 3 . . Hover 3 | . 3 . . Flight . | . . . . Utility 9 | . 7 1 1 Device 7 | . 6 1 . Storage . | . . . . Processor 1 | . 1 . . Hackware . | . . . . Protection 1 | . . . 1 Artifact . | . . . . Weapon 9 | 2 6 . 1 Energy Gun 1 | 1 . . . Energy Cannon . | . . . . Ballistic Gun 1 | 1 . . . Ballistic Cannon . | . . . . Launcher 1 | . . . 1 Special Weapon . | . . . . Impact Weapon 2 | . 2 . . Slashing Weapon 4 | . 4 . . Piercing Weapon . | . . . . Special Melee Weapon . | . . . . Unidentified Prototypes 1 | . . 1 . Parts Lost . | . . . . Power . | . . . . Propulsion . | . . . . Utility . | . . . . Weapon . | . . . . Highest Loss Streak . | . . . . To Critical Strikes . | . . . . Average Slot Usage (%) 93 | . 93 100 90 Engine 4 | . 7 . . Core 7 | . 5 12 10 Wheel 14 | . 24 . . Hover 10 | . 2 25 20 Device 22 | . 23 25 20 Processor 6 | . 3 12 10 Protection 2 | . . . 10 Impact Weapon 2 | . 4 . . Slashing Weapon 19 | . 19 25 16 Naked Turns . | . . . . Heaviest Build 16 | 9 11 11 16 Greatest Support 26 | 3 26 12 12 Greatest Overweight (x) 2 | 2 1 . 1 Average Overweight (x) . | 1 . . . Largest Inventory Capacity 3 | 3 3 3 3 Average Capacity 2 | 2 3 3 3 Most Carried 3 | 3 3 3 3 Average Carried 2 | 2 2 2 2 Final Capacity 3 | 3 3 3 3 Final Carried 3 | 3 2 3 3 Class Distribution -------------------- 57% | Gladiator 15% | Scout 12% | Mutant 7% | Scavenger-Scout 7% | Assassin Dominant Class ---------------- Gladiator | -10/Materials Scout | -10/Mines Gladiator | -9/Materials Resources | -11 -10 -10 -9 ----------- Run | Yrd Mat Min Mat Matter Collected 506 | 230 176 . 100 Remotely . | . . . . Salvage Created 789 | . 699 . 90 Parts 40 | . 32 . 8 Haulers Intercepted 1 | . 1 . . Recyclers Shooed 2 | . . . 2 Parts Field Recycled . | . . . . Retrieved Matter . | . . . . Parts Self-Destructed . | . . . . Prevented . | . . . . Kills | -11 -10 -10 -9 ------- Run | Yrd Mat Min Mat Combat Hostiles Destroyed 18 | . 13 . 5 Melee 13 | . 12 . 1 AOE 4 | . . . 4 Classes Destroyed 7 | . 5 . 2 Builder 2 | . 1 . 1 Hauler 1 | . 1 . . Recycler 3 | . 3 . . Mechanic 1 | . . . 1 Watcher 2 | . 2 . . Grunt 16 | . 13 . 3 Sentry 2 | . . . 2 Best Kill Streak 6 | . 3 . 6 Combat Bots Only 4 | . 2 . 4 Max Kills in Single Turn 2 | . 1 . 2 Gunslinging . | . . . . Exploded 1 | . . . 1 Melee 1 | . 1 . 1 Uniques/NPCs Destroyed . | . . . . Combat | -11 -10 -10 -9 -------- Run | Yrd Mat Min Mat Hostile Shots Fired 203 | . 108 . 95 Missed 44 | . 25 . 19 Damage Taken 2290 | . 1034 . 1256 Core 1752 | . 871 . 881 Absorbed by Shields . | . . . . Redirected to Core 1166 | . 518 . 648 Core Remaining (%) 91 | 100 . 83 . Volleys Fired 8 | . 3 . 5 Largest 1 | . 1 . 1 Hottest 33 | . 20 . 33 Shots Fired 8 | . 3 . 5 Gun 3 | . 3 . . Cannon . | . . . . Launcher 5 | . . . 5 Special . | . . . . Kinetic 3 | . 3 . . Thermal . | . . . . Explosive 5 | . . . 5 Electromagnetic . | . . . . Robot Hit Streak 3 | . . . 3 Robot Miss Streak 3 | . 3 . 1 Penetration Max . | . . . . Secondary Targets . | . . . . Shots Hit Robots 75 | . 53 . 22 Core Hits 33 | . 20 . 13 Critical Kills 1 | . 1 . . Critical Parts Destroyed 2 | . 2 . . Critical Strikes 3 | . 3 . . Smash 3 | . 3 . . Melee Attacks 125 | . 89 . 36 Impact 20 | . 20 . . Slashing 105 | . 69 . 36 Piercing . | . . . . Sneak Attacks 7 | . 6 . 1 Combat Hostiles . | . . . . Follow-up Attacks 9 | . 9 . . Damage Inflicted 2328 | . 1403 . 925 Guns . | . . . . Cannons . | . . . . Explosions 569 | . . . 569 Melee 1758 | . 1402 . 356 Ramming 1 | . 1 . . Kinetic . | . . . . Thermal . | . . . . Explosive 569 | . . . 569 Electromagnetic . | . . . . Impact 440 | . 440 . . Slashing 1318 | . 962 . 356 Piercing . | . . . . Highest Corruption . | . . . . Average Corruption . | . . . . Corruption Purged . | . . . . Corruption Blocked . | . . . . Overload Shots . | . . . . Overflow Damage 108 | . 108 . . Projectiles . | . . . . Explosions . | . . . . Melee 108 | . 108 . . Knockbacks 1 | . 1 . . Impact 1 | . 1 . . Kinetic . | . . . . Secondary . | . . . . Self-Inflicted Damage 173 | . . . 173 Shots 4 | . . . 4 Rammed 1 | . 1 . . Targets Rammed 1 | . 1 . . Kicked . | . . . . Crushed . | . . . . Highest Temperature 93 | . 12 . 93 Average Temperature 29 | . 10 . 31 Received Heat Transfer 1050 | . 609 . 441 Siege Activations . | . . . . Robots Corrupted . | . . . . Combat Hostiles . | . . . . Parts Fried 2 | . 2 . . Impact Corruptions 3 | . 3 . . Robots Melted . | . . . . Combat Hostiles . | . . . . Parts Melted . | . . . . Heat Transferred . | . . . . Parts Sabotaged . | . . . . Parts Stolen . | . . . . Parts Stripped . | . . . . Power Chain Reactions . | . . . . Alert | -11 -10 -10 -9 ------- Run | Yrd Mat Min Mat Peak Influence 250 | . 250 79 193 Initial 79 | . . 79 30 Average 89 | . 112 79 54 Maximum Alert Level 1 | . 1 . . Low Security (%) 95 | 100 92 100 100 Level 1 4 | . 7 . . Level 2 . | . . . . Level 3 . | . . . . Level 4 . | . . . . Level 5 . | . . . . High Security . | . . . . Max Security . | . . . . Squads Dispatched 5 | . 3 1 1 Investigation 1 | . . 1 . Extermination . | . . . . Reinforcement 4 | . 3 . 1 Assault . | . . . . Garrison . | . . . . Intercept . | . . . . Searches Triggered . | . . . . Construction Impeded . | . . . . Haulers Reinforced . | . . . . Active Scanning Responses . | . . . . Cargo Convoy Interrupts . | . . . . Stealth | -11 -10 -10 -9 --------- Run | Yrd Mat Min Mat Distress Signals 1 | . . . 1 Communications Jammed . | . . . . Distress Signals . | . . . . Times Spotted 46 | . 30 . 16 Peak Tracking Total 7 | . 6 . 7 Tactical Retreats 2 | . 2 . . Traps | -11 -10 -10 -9 ------- Run | Yrd Mat Min Mat Traps Triggered 6 | . 5 . 1 Indirectly . | . . . . Trap Hack Attempts . | . . . . Triggered . | . . . . Disarmed . | . . . . Reprogrammed . | . . . . Reused . | . . . . Traps Extracted . | . . . . Installed . | . . . . Triggered . | . . . . Machines | -11 -10 -10 -9 ---------- Run | Yrd Mat Min Mat Machines Disabled 3 | . . . 3 Max in Single Turn 2 | . . . 2 Machines Repaired . | . . . . Machines Dismantled . | . . . . Machines Sabotaged . | . . . . Overloaded Fab Kills . | . . . . Hacking | -11 -10 -10 -9 --------- Run | Yrd Mat Min Mat Machines Accessed 4 | . 1 1 2 Terminals 3 | . 1 . 2 Fabricators . | . . . . Repair Stations . | . . . . Recycling Units . | . . . . Scanalyzers . | . . . . Garrison Access . | . . . . Total Hacks 5 | . 2 1 2 Successful 4 | . 1 1 2 Failed 1 | . 1 . . Catastrophic . | . . . . Database Lockouts . | . . . . Manual 3 | . 2 . 1 Terminals 4 | . 2 . 2 Fabricators . | . . . . Repair Stations . | . . . . Recycling Units . | . . . . Scanalyzers . | . . . . Garrison Access . | . . . . Terminal Hacks 4 | . 1 1 2 Open Door 1 | . . 1 . Hauler Manifests 2 | . 1 . 1 Zone Layout 1 | . . . 1 Fabricator Hacks . | . . . . Repair Station Hacks . | . . . . Recycling Unit Hacks . | . . . . Scanalyzer . | . . . . Garrison Access Hacks . | . . . . Unauthorized Hacks . | . . . . Terminals . | . . . . Fabricators . | . . . . Repair Stations . | . . . . Recycling Units . | . . . . Scanalyzers . | . . . . Garrison Access . | . . . . Data Cores Recovered . | . . . . Used . | . . . . Hacking Detections . | . . . . Full Trace Events . | . . . . Feedback Events . | . . . . Feedback Blocked . | . . . . Robot Schematics Acquired . | . . . . Robots Built . | . . . . Authchips . | . . . . Time . | . . . . Total Robot Build Rating . | . . . . Part Schematics Acquired . | . . . . Parts Built . | . . . . Authchips . | . . . . Time . | . . . . Total Part Build Rating . | . . . . Parts Repaired . | . . . . Time . | . . . . Parts Recycled . | . . . . Recycled Matter . | . . . . Retrieved Matter . | . . . . Retrieved Components . | . . . . Parts Scanalyzed . | . . . . Part Schematics Acquired . | . . . . Parts Damaged . | . . . . Bothacking | -11 -10 -10 -9 ------------ Run | Yrd Mat Min Mat Used RIF Installer . | . . . . Robots Hacked . | . . . . Non-combat . | . . . . Combat . | . . . . Robot Hacks Applied . | . . . . Relay Couplers Released . | . . . . Fabnet Peak Effective % . | . . . . Robots Rewired . | . . . . Allies Hacked . | . . . . Hacks Repelled . | . . . . Allies | -11 -10 -10 -9 -------- Run | Yrd Mat Min Mat Total Allies 3 | . . 3 . Largest Group 3 | . . 3 3 Highest-Rated Group 40 | . . 40 40 Highest-Rated Ally 16 | . . 16 16 Total Orders . | . . . . Ally Attacks 13 | . . . 13 Total Damage 167 | . . . 167 Kills 1 | . . . 1 Allies Corrupted . | . . . . Allies Melted . | . . . . Intel | -11 -10 -10 -9 ------- Run | Yrd Mat Min Mat Robot Analysis Total . | . . . . Derelict Logs Recovered 1 | . . 1 . Drone Launches . | . . . . Drone Recoveries . | . . . . Exploration | -11 -10 -10 -9 ------------- Run | Yrd Mat Min Mat Turns Passed 2146 | 75 1186 369 516 Spaces Moved 1744 | 62 926 499 257 Core 62 | 62 . . . Treads . | . . . . Legs . | . . . . Wheels 782 | . 782 . . Hover 900 | . 144 499 257 Flight . | . . . . Fastest Speed 50 | 50 56 56 56 Average Speed 82 | 109 85 56 114 Slowest Speed 150 | 150 120 56 116 Overloaded Moves . | . . . . Propulsion Burnouts . | . . . . Robots Hopped . | . . . . Cave-ins Triggered . | . . . . Exploration Rate (%) 55 | 3 95 97 25 Regions Visited 3 Branch Regions 1 Pre-discovered Areas 1 | . . 1 . Known Exits Taken 2 | . 1 1 . Unknown Exits Taken 1 | 1 . . . Scrap Searched 1 | . . 1 . Spaces Dug 8 | . 4 . 4 Terrain Destroyed 34 | . 4 . 30 Melee 8 | . 4 . 4 Projectile . | . . . . AOE 26 | . . . 26 Terrain Rammed . | . . . . Walls Destroyed . | . . . . Machines Disabled . | . . . . Actions | -11 -10 -10 -9 --------- Run | Yrd Mat Min Mat Total 2231 | 69 1167 590 405 Wait 230 | . 82 76 72 Move 1741 | 61 925 498 257 Hop . | . . . . Pick Up 24 | 5 12 4 3 Fast Attach 11 | 1 9 1 . Attach 14 | 2 9 1 2 Detach . | . . . . Swap 5 | . 4 1 . Drop 21 | . 13 5 3 Fire 8 | . 3 . 5 Melee 111 | . 75 . 36 Ram 1 | . 1 . . Kick . | . . . . Crush . | . . . . Escape Stasis . | . . . . Rewire . | . . . . Trap . | . . . . Miscellaneous 65 | . 34 4 27 Route ------- -11/Scrapyard -10/Materials (discovered 4 exits: *Mat x3 / *Min) -10/Mines (discovered 2 exits: *Mat x2) -9/Materials (discovered 2 exits: [*Mat] / [*Min]) History --------- Turn | Location | Event 6 | -11/Scrapyard | Discovered new exit (range 16) 8 | -11/Scrapyard | Upgraded with Propulsion slot (x1) 8 | -11/Scrapyard | Upgraded with Utility slot (x1) 8 | -11/Scrapyard | Upgraded with Weapon slot (x1) 76 | -11/Scrapyard | Entered Materials 332 | -10/Materials | Discovered new exit (range 8) 444 | -10/Materials | Discovered new exit (range 10) 737 | -10/Materials | Build established: Gladiator 895 | -10/Materials | Reached level 2 900 | -10/Materials | Upgraded with Utility slot (x1) 966 | -10/Materials | Discovered new exit (range 16) 981 | -10/Materials | Identified exit to Materials 1064 | -10/Materials | Discovered exit to Materials (range 15) 1260 | -10/Materials | Identified exit to Mines 1262 | -10/Materials | Entered Mines 1322 | -10/Mines | Assisted by bots powering up and referring to "LRC-V3" 1341 | -10/Mines | A weapon hastily lodged in a ceiling crevice suddenly fell to the ground 1392 | -10/Mines | Learned location of Storage (-7) 1398 | -10/Mines | Found a damaged Exp. Sensor Array with a note attached 1400 | -10/Mines | Found Prototype Device 1401 | -10/Mines | Identified Exp. Sensor Array 1454 | -10/Mines | Received a Rocket Launcher from a helpful Derelict 1463 | -10/Mines | Met a Derelict shopkeep closing up shop 1574 | -10/Mines | Discovered exit to Materials (range 9) 1586 | -10/Mines | Discovered exit to Materials (range 7) 1631 | -10/Mines | Entered Materials 1631 | -9/Materials | Accompanied by 3 allies 1633 | -9/Materials | Reached level 3 1635 | -9/Materials | Upgraded with Propulsion slot (x1) 1635 | -9/Materials | Upgraded with Utility slot (x1) 1707 | -9/Materials | Discovered new exit (range 12) 2134 | -9/Materials | Discovered new exit (range 8) 2135 | -9/Materials | Core integrity fell below 50% 2143 | -9/Materials | Core integrity fell below 20% 2143 | -9/Materials | Reached level 4 2147 | -9/Materials | Destroyed self with Rocket Launcher Last Messages --------------- >>Layout(Zone) Retrieving Zone 1C layout... Downloaded map data. 02119_ G-47 Trooper Aluminum Leg ripped off. 02119_ Critical hit (Burn: +37). 02134_ Atomic Centrifuge disabled. 02134_ G-47 Trooper destroyed. 02134_ Terminal disabled. 02134_ EXIT=FOUND 02139_ Critical hit (Burn: +37). 02139_ M-13 Machinist fits Backup Propulsion I on G-47 Trooper. 02140_ Acquired Protomatter-43. 02141_ G-34 Mercenary destroyed. 02141_ M-13 Machinist destroyed. 02143_ Reached level 4. 02143_ G-34 Mercenary destroyed. 02143_ U-05 Engineer destroyed. 02145_ Atomic Centrifuge disabled. 02146_ The unstable cave ceiling collapses. 02147_ Y-45 Defender destroyed. Map ----- +----------------------------------------------------+ | | | | | | | ?????????????????????????????????????????????????? | | ?????????????????????????????????????????????????? | | ?????????????????????????????????????????????????? | | ?????????????????????????????????????????????????? | | ?????????????????????????????????????????????????? | | ?????????????????????????????????????????????????? | | ?????????????????????????????????????????????????? | | ?????????????????????????????????????????????????? | | ?????????????????????????????????????????????????? | | ??????????????????############ ??????????????????? | | ?????????????????############# ??????????????????? | | ?????????????????###%%%%## # ??????????????????? | | ?????????????????##% %# < # ??????????????????? | | ?????????????????## # # ####?????????? | | ?????????????????## # ###+#######?????????? | | ?????????????????## x ?????????? | | ?????????????????## ????????????? | | ?????????????????## ? ?????????????? | | ????????????????? # # # ######?????????????? | | ????????????????? # # g ] ##?????????????? | | ???????????x????? # ? #%* ##?????????????? | | ????????????????? + # ##?????????????? | | ????????????? # @ % " " ##?????????????? | | ????????????? """ # # = ##?????????????? | | ????????????? """ # ##?????????????? | | ????????????? """ # # g ##?????????????? | | ?????????????###### ### ##????????#####? | | ?????????????###### ##### ####???########### | | ????????????? ####### ############### ### | | ????????????? #???### ########### !!## | | ????????????? #??####x !!## | | ????????????? #??####/######### !!## " | | ??????????x?? ########??## ### !!## ! " | | ????????????? #?????????## """ ### !!"# | | ????????????? #?????????## ! """ ### !!## | | ????????????? #?????????## """ ### ###### | | ????????????? #?????????##"" """ ### ###### | | ????????????? #?????????##"T """ ### ##??## | | ????????????? #?????????##"" ### ########## | | ?????????###? ############ ### ########## | | ?????????## #################+### %%%!##?????? | | ?????????## * x *%%% ] ##?????? | | ?????????## = = % % ##?????? | | ?????????## ! ! ##?????? | | ?????????## ############### ##### ##?????? | | ?????????###?################## ###### ###?????? | | ?????????????????????????????## ##?### ###?????? | +----------------------------------------------------+ Best States ------------- Heat Dissipation 25 Energy Generation 14 Energy Capacity 250 Matter Stores 300 Matter Capacity 300 Sight Range 16 Robot Scan Range 20 Terrain Scan Density 10 Armor Coverage 150 Evasion (%) 53 Item Schematics ----------------- None Robot Schematics ------------------ None Fabricated ------------ Nothing Alien Tech Used ----------------- None Achievements -------------- None Challenges ------------ None RPGLIKE | -11 -10 -10 -9 --------- Run | Yrd Mat Min Mat Levels Raised 3 | . 1 . 2 XP Earned 7766 | 3000 1705 500 2561 XP Spent 5700 | 3000 800 . 1900 Upgrades 9 | 6 1 . 2 Propulsion Slot 2 | 1 . . 1 Utility Slot 3 | 1 1 . 1 Weapon Slot 1 | 1 . . . Inventory Capacity 3 | 3 . . . Protomatter Created 365 | . 271 . 94 Integrity Restored 1353 | . 710 90 553 Core 1149 | . 681 90 378 Parts 204 | . 29 . 175 Protomatter Decayed 32 | . . 32 . Game ------ Seed LightpackCryofiberSegregator Manual? 0 Play Time 00:16:04 Cumulative 98.0 hours Start 2024.05.01 @ 18:13:10 End 2024.05.01 @ 18:28:14 Sessions 1 Manual Loads 0 Difficulty Rogue Special Mode Winter2019/RPGLIKE Game No. 49 Rogue 47 Adventurer 2 Explorer 0 Win Type - Total 6 Types 1/1/1/1/1/1/0/0/0 Lore% 44 Gallery% 71 Achievement% 56 Wizard Run 0 Options --------- Layout 0 ASCII 0 Keyboard 0 Movement Numpad Keybinds 1 Fullscreen 2 Font 18/Smallcaps Map View 76x50 Zoom Use 0% Tactical HUD 1 Map Filters NONE Filters NONE Steam 1 RUN: ad6cbc63-49d4-4778-b788-b535e3339c77